[Event "Late-Titled-Tuesday-Blitz-May-07-2024"]
[Site "Chess.com"]
[Date "2024.05.07"]
[Round "6"]
[White "semchik90"]
[Black "jk13"]
[Result "1-0"]
[WhiteElo "2452"]
[BlackElo "2618"]
[TimeControl "180+1"]
[EndTime "15:06:37 PDT"]
[Termination "semchik90 won by checkmate"]

1. Nf3 {[%clk 0:03:00.3]} 1... d5 {[%clk 0:02:59.8]} 2. c4 {[%clk 0:03:00.9]}
2... e6 {[%clk 0:02:59.7]} 3. d4 {[%clk 0:03:00.7]} 3... Nf6 {[%clk 0:02:59.1]}
4. Nc3 {[%clk 0:03:00.9]} 4... c6 {[%clk 0:02:59.8]} 5. e3 {[%clk 0:03:00.9]}
5... Nbd7 {[%clk 0:02:59.7]} 6. Bd3 {[%clk 0:03:01.5]} 6... dxc4 {[%clk
0:03:00.1]} 7. Bxc4 {[%clk 0:03:01]} 7... b5 {[%clk 0:03:01]} 8. Bd3 {[%clk
0:03:01.6]} 8... Bd6 {[%clk 0:03:01.6]} 9. O-O {[%clk 0:02:59.7]} 9... O-O
{[%clk 0:03:01.5]} 10. e4 {[%clk 0:03:00]} 10... e5 {[%clk 0:03:02]} 11. Bg5
{[%clk 0:02:54.1]} 11... h6 {[%clk 0:03:00.7]} 12. Bh4 {[%clk 0:02:51.4]} 12...
Re8 {[%clk 0:03:01.3]} 13. d5 {[%clk 0:02:45.3]} 13... cxd5 {[%clk 0:03:01.4]}
14. Nxd5 {[%clk 0:02:44.9]} 14... a6 {[%clk 0:02:35.7]} 15. Rc1 {[%clk
0:02:35.9]} 15... Bb7 {[%clk 0:02:35.7]} 16. Nxf6+ {[%clk 0:02:24.8]} 16... Nxf6
{[%clk 0:02:35.8]} 17. Qe2 {[%clk 0:02:25.2]} 17... Qe7 {[%clk 0:02:27.3]} 18.
Rfd1 {[%clk 0:02:17.3]} 18... Qe6 {[%clk 0:02:27.3]} 19. a4 {[%clk 0:01:58.9]}
19... bxa4 {[%clk 0:02:19.6]} 20. Bc4 {[%clk 0:01:58.9]} 20... Qe7 {[%clk
0:02:20]} 21. Bd5 {[%clk 0:01:43.6]} 21... Bxd5 {[%clk 0:02:16.8]} 22. exd5
{[%clk 0:01:24]} 22... Rf8 {[%clk 0:01:33.6]} 23. Rc6 {[%clk 0:01:16.2]} 23...
a5 {[%clk 0:01:31.5]} 24. Nd2 {[%clk 0:00:41.3]} 24... g5 {[%clk 0:01:27.1]} 25.
Bg3 {[%clk 0:00:41.3]} 25... Rfb8 {[%clk 0:01:01.5]} 26. Nc4 {[%clk 0:00:40.3]}
26... Rd8 {[%clk 0:00:40.7]} 27. Nxd6 {[%clk 0:00:35.8]} 27... Rxd6 {[%clk
0:00:41.6]} 28. Rxd6 {[%clk 0:00:25.4]} 28... Qxd6 {[%clk 0:00:42.5]} 29. Bxe5
{[%clk 0:00:22.3]} 29... Re8 {[%clk 0:00:35.9]} 30. Bxd6 {[%clk 0:00:14.3]}
30... Rxe2 {[%clk 0:00:36.8]} 31. Kf1 {[%clk 0:00:13.2]} 31... Rxb2 {[%clk
0:00:30.7]} 32. Be5 {[%clk 0:00:13.3]} 32... Rb6 {[%clk 0:00:31.3]} 33. Bxf6
{[%clk 0:00:12.6]} 33... Rd6 {[%clk 0:00:28.6]} 34. Be5 {[%clk 0:00:11.7]} 34...
Rd7 {[%clk 0:00:29.2]} 35. d6 {[%clk 0:00:09.1]} 35... Kh7 {[%clk 0:00:29.1]}
36. Ra1 {[%clk 0:00:06.4]} 36... f6 {[%clk 0:00:29.3]} 37. Bg3 {[%clk
0:00:06.2]} 37... f5 {[%clk 0:00:29.2]} 38. Be5 {[%clk 0:00:06.6]} 38... Kg6
{[%clk 0:00:29.6]} 39. Rxa4 {[%clk 0:00:06.8]} 39... f4 {[%clk 0:00:30.1]} 40.
Rxa5 {[%clk 0:00:07.1]} 40... Kf5 {[%clk 0:00:31]} 41. f3 {[%clk 0:00:06.8]}
41... Ke6 {[%clk 0:00:31.3]} 42. g3 {[%clk 0:00:06.2]} 42... Rb7 {[%clk
0:00:32]} 43. gxf4 {[%clk 0:00:05.6]} 43... gxf4 {[%clk 0:00:32.9]} 44. Bxf4
{[%clk 0:00:05.5]} 44... Rf7 {[%clk 0:00:33.8]} 45. Bxh6 {[%clk 0:00:03.7]}
45... Rxf3+ {[%clk 0:00:34.7]} 46. Kg2 {[%clk 0:00:04]} 46... Rf6 {[%clk
0:00:33.4]} 47. Bg5 {[%clk 0:00:03.4]} 47... Rg6 {[%clk 0:00:32.5]} 48. h4
{[%clk 0:00:04]} 48... Kxd6 {[%clk 0:00:32.9]} 49. Kg3 {[%clk 0:00:04.7]} 49...
Ke6 {[%clk 0:00:33.5]} 50. Kg4 {[%clk 0:00:05.3]} 50... Rg8 {[%clk 0:00:33.5]}
51. Ra6+ {[%clk 0:00:05.7]} 51... Kf7 {[%clk 0:00:34.3]} 52. Ra7+ {[%clk
0:00:05.7]} 52... Kg6 {[%clk 0:00:34.6]} 53. h5# {[%clk 0:00:06.2]} 1-0

[Event "Late-Titled-Tuesday-Blitz-May-07-2024"]
[Site "Chess.com"]
[Date "2024.05.07"]
[Round "6"]
[White "nindjaxx8"]
[Black "sudtirolese06"]
[Result "1-0"]
[WhiteElo "2641"]
[BlackElo "2455"]
[TimeControl "180+1"]
[EndTime "15:06:40 PDT"]
[Termination "nindjaxx8 won by resignation"]

1. d4 {[%clk 0:03:00.9]} 1... g6 {[%clk 0:02:40.6]} 2. c4 {[%clk 0:02:59.8]}
2... Bg7 {[%clk 0:02:40.5]} 3. Nc3 {[%clk 0:03:00.1]} 3... d6 {[%clk 0:02:40.7]}
4. Nf3 {[%clk 0:02:55.6]} 4... Nf6 {[%clk 0:02:39.9]} 5. Bf4 {[%clk 0:02:52.8]}
5... O-O {[%clk 0:02:38.2]} 6. e3 {[%clk 0:02:52.7]} 6... Nbd7 {[%clk
0:02:36.1]} 7. Be2 {[%clk 0:02:52.5]} 7... Re8 {[%clk 0:02:36.4]} 8. O-O {[%clk
0:02:52.1]} 8... e5 {[%clk 0:02:36.2]} 9. dxe5 {[%clk 0:02:51.2]} 9... dxe5
{[%clk 0:02:35.7]} 10. Nxe5 {[%clk 0:02:51]} 10... Qe7 {[%clk 0:02:24.9]} 11.
Nxd7 {[%clk 0:02:49.4]} 11... Bxd7 {[%clk 0:02:23.7]} 12. Bf3 {[%clk 0:02:45.8]}
12... c6 {[%clk 0:02:22]} 13. Qb3 {[%clk 0:02:43.3]} 13... Be6 {[%clk
0:02:20.9]} 14. Qa4 {[%clk 0:02:34.4]} 14... Nd7 {[%clk 0:02:17.8]} 15. Be2
{[%clk 0:02:22.4]} 15... h5 {[%clk 0:02:12.8]} 16. h3 {[%clk 0:02:15.6]} 16...
Nb6 {[%clk 0:02:10.3]} 17. Qb3 {[%clk 0:02:13.3]} 17... Rad8 {[%clk 0:02:09.1]}
18. Rad1 {[%clk 0:02:12]} 18... Qc5 {[%clk 0:02:01.7]} 19. Ne4 {[%clk
0:02:00.1]} 19... Qa5 {[%clk 0:01:53.3]} 20. Nd6 {[%clk 0:01:29.6]} 20... Rxd6
{[%clk 0:01:49.5]} 21. Bxd6 {[%clk 0:01:25.5]} 21... h4 {[%clk 0:01:45.3]} 22.
Kh1 {[%clk 0:01:10.2]} 22... Qf5 {[%clk 0:01:33.6]} 23. Bg4 {[%clk 0:01:00.3]}
23... Qe4 {[%clk 0:01:25.5]} 24. Bxe6 {[%clk 0:00:59.8]} 24... Rxe6 {[%clk
0:01:23.3]} 25. Bc5 {[%clk 0:00:49.1]} 25... Qxc4 {[%clk 0:01:17.1]} 26. Bxb6
{[%clk 0:00:37.5]} 26... Qxb3 {[%clk 0:01:15.2]} 27. axb3 {[%clk 0:00:37.8]}
27... axb6 {[%clk 0:01:16.1]} 28. Rd8+ {[%clk 0:00:38.2]} 28... Kh7 {[%clk
0:01:15.9]} 29. Rd7 {[%clk 0:00:38.4]} 29... Kg8 {[%clk 0:01:07.6]} 30. Rfd1
{[%clk 0:00:35.3]} 30... Bxb2 {[%clk 0:01:05.9]} 31. Rxb7 {[%clk 0:00:35.2]}
31... b5 {[%clk 0:01:05]} 32. Rdd7 {[%clk 0:00:33.6]} 32... Rf6 {[%clk
0:01:04.9]} 33. Kg1 {[%clk 0:00:33.2]} 33... Bc3 {[%clk 0:01:02.3]} 34. Rb8+
{[%clk 0:00:28.8]} 34... Kg7 {[%clk 0:01:01.8]} 35. Rdd8 {[%clk 0:00:28.2]}
35... Re6 {[%clk 0:00:59.4]} 36. Kf1 {[%clk 0:00:25.8]} 36... Bf6 {[%clk
0:00:51.9]} 37. Rd7 {[%clk 0:00:23.8]} 37... Be5 {[%clk 0:00:47.3]} 38. Rbb7
{[%clk 0:00:20.4]} 38... Rf6 {[%clk 0:00:47.4]} 39. f4 {[%clk 0:00:19.6]} 39...
g5 {[%clk 0:00:46.8]} 40. Ke2 {[%clk 0:00:12.1]} 40... gxf4 {[%clk 0:00:46.3]}
41. e4 {[%clk 0:00:12.7]} 41... Kg6 {[%clk 0:00:43.2]} 42. Kf3 {[%clk
0:00:12.8]} 42... Bd4 {[%clk 0:00:33.7]} 43. Rxd4 {[%clk 0:00:12.6]} 43... c5
{[%clk 0:00:30.3]} 44. Rd5 {[%clk 0:00:12.6]} 44... Rc6 {[%clk 0:00:29.9]} 45.
Rxb5 {[%clk 0:00:12.1]} 45... c4 {[%clk 0:00:29.6]} 46. Rbc5 {[%clk 0:00:12.2]}
46... Rb6 {[%clk 0:00:28.2]} 47. bxc4 {[%clk 0:00:12.8]} 47... Rb3+ {[%clk
0:00:28.4]} 48. Kxf4 {[%clk 0:00:13.3]} 48... Rg3 {[%clk 0:00:29.3]} 49. Rg5+
{[%clk 0:00:13.2]} 1-0

[Event "Late-Titled-Tuesday-Blitz-May-07-2024"]
[Site "Chess.com"]
[Date "2024.05.07"]
[Round "6"]
[White "cristianserban1"]
[Black "giomar27"]
[Result "1-0"]
[WhiteElo "2637"]
[BlackElo "2469"]
[TimeControl "180+1"]
[EndTime "15:06:41 PDT"]
[Termination "cristianserban1 won by checkmate"]

1. Nf3 {[%clk 0:03:00.9]} 1... c5 {[%clk 0:02:58]} 2. e3 {[%clk 0:03:00.3]} 2...
b6 {[%clk 0:02:57.2]} 3. b3 {[%clk 0:03:00.4]} 3... Bb7 {[%clk 0:02:57.5]} 4.
Bb2 {[%clk 0:03:00.8]} 4... e6 {[%clk 0:02:57.4]} 5. Be2 {[%clk 0:02:55.9]} 5...
Nf6 {[%clk 0:02:57.8]} 6. O-O {[%clk 0:02:56.6]} 6... Be7 {[%clk 0:02:57.2]} 7.
d4 {[%clk 0:02:52]} 7... cxd4 {[%clk 0:02:55.9]} 8. Nxd4 {[%clk 0:02:52.9]} 8...
O-O {[%clk 0:02:55.8]} 9. Bf3 {[%clk 0:02:51.7]} 9... d5 {[%clk 0:02:53.8]} 10.
c4 {[%clk 0:02:51.4]} 10... Nbd7 {[%clk 0:02:46]} 11. Nd2 {[%clk 0:02:38.1]}
11... Ne5 {[%clk 0:02:45.7]} 12. Be2 {[%clk 0:02:32]} 12... Rc8 {[%clk
0:02:36.7]} 13. Nxe6 {[%clk 0:02:29.4]} 13... fxe6 {[%clk 0:02:30.3]} 14. Bxe5
{[%clk 0:02:29.3]} 14... Qe8 {[%clk 0:02:27.5]} 15. cxd5 {[%clk 0:02:23.1]}
15... Nxd5 {[%clk 0:02:22.6]} 16. Bf3 {[%clk 0:02:19.3]} 16... Qg6 {[%clk
0:02:19.6]} 17. Bg3 {[%clk 0:02:14.7]} 17... Rcd8 {[%clk 0:02:12]} 18. Rc1
{[%clk 0:01:59]} 18... Bb4 {[%clk 0:01:59]} 19. Qc2 {[%clk 0:01:02.9]} 19... Ba6
{[%clk 0:01:47.2]} 20. Qxg6 {[%clk 0:00:50.6]} 20... hxg6 {[%clk 0:01:45.5]} 21.
Nc4 {[%clk 0:00:51]} 21... Nc3 {[%clk 0:01:40.5]} 22. a3 {[%clk 0:00:49.8]}
22... Bxc4 {[%clk 0:01:32.4]} 23. bxc4 {[%clk 0:00:48.8]} 23... Ba5 {[%clk
0:01:33.3]} 24. Bg4 {[%clk 0:00:46.3]} 24... Kf7 {[%clk 0:01:31.9]} 25. Be5
{[%clk 0:00:39.2]} 25... Rd3 {[%clk 0:01:31.6]} 26. Bd4 {[%clk 0:00:27.4]} 26...
Rd8 {[%clk 0:01:26.6]} 27. c5 {[%clk 0:00:26.7]} 27... bxc5 {[%clk 0:01:25.3]}
28. Bxc5 {[%clk 0:00:27.6]} 28... Rd2 {[%clk 0:01:21.1]} 29. Bb4 {[%clk
0:00:25.6]} 29... Bxb4 {[%clk 0:01:10]} 30. axb4 {[%clk 0:00:26.5]} 30... Nd5
{[%clk 0:01:10.5]} 31. Rb1 {[%clk 0:00:18.2]} 31... Nc3 {[%clk 0:01:04.6]} 32.
Rb3 {[%clk 0:00:14.6]} 32... Nd5 {[%clk 0:01:01.3]} 33. Bf3 {[%clk 0:00:10.1]}
33... Nb6 {[%clk 0:00:59.5]} 34. g3 {[%clk 0:00:08.8]} 34... Rc2 {[%clk
0:00:59.4]} 35. Ra1 {[%clk 0:00:08.4]} 35... Rd7 {[%clk 0:00:59.3]} 36. b5
{[%clk 0:00:07.8]} 36... Nc4 {[%clk 0:00:57.3]} 37. Bc6 {[%clk 0:00:07.1]} 37...
Rc7 {[%clk 0:00:56.2]} 38. Rb4 {[%clk 0:00:07]} 38... Ne5 {[%clk 0:00:56]} 39.
Be4 {[%clk 0:00:06.5]} 39... g5 {[%clk 0:00:52.5]} 40. Bxc2 {[%clk 0:00:06.2]}
40... Rxc2 {[%clk 0:00:49]} 41. Rxa7+ {[%clk 0:00:06.9]} 41... Kf6 {[%clk
0:00:48.6]} 42. Ra1 {[%clk 0:00:07.3]} 42... g4 {[%clk 0:00:48.4]} 43. Rf4+
{[%clk 0:00:05.3]} 43... Kg5 {[%clk 0:00:48.5]} 44. b6 {[%clk 0:00:05.1]} 44...
Rb2 {[%clk 0:00:48.6]} 45. Ra5 {[%clk 0:00:04.4]} 45... Kh5 {[%clk 0:00:39.6]}
46. Rxe5+ {[%clk 0:00:04.3]} 46... g5 {[%clk 0:00:40.5]} 47. Rf8 {[%clk
0:00:02.3]} 47... Kg6 {[%clk 0:00:38.6]} 48. Rxe6+ {[%clk 0:00:02]} 48... Kg7
{[%clk 0:00:38.6]} 49. Rff6 {[%clk 0:00:02.7]} 49... Kg8 {[%clk 0:00:38.5]} 50.
Kg2 {[%clk 0:00:03.2]} 50... Kg7 {[%clk 0:00:38.8]} 51. Rg6+ {[%clk 0:00:03.7]}
51... Kh7 {[%clk 0:00:39.2]} 52. Rxg5 {[%clk 0:00:04]} 52... Kh8 {[%clk
0:00:39.4]} 53. Rxg4 {[%clk 0:00:04.5]} 53... Kh7 {[%clk 0:00:39.9]} 54. Reg6
{[%clk 0:00:04.5]} 54... Kh8 {[%clk 0:00:39.9]} 55. Rh6# {[%clk 0:00:05]} 1-0

[Event "Late-Titled-Tuesday-Blitz-May-07-2024"]
[Site "Chess.com"]
[Date "2024.05.07"]
[Round "6"]
[White "MyDream003"]
[Black "FairChess_on_YouTube"]
[Result "0-1"]
[WhiteElo "2832"]
[BlackElo "3075"]
[TimeControl "180+1"]
[EndTime "15:06:42 PDT"]
[Termination "FairChess_on_YouTube won on time"]

1. e4 {[%clk 0:02:59.3]} 1... c5 {[%clk 0:02:59.7]} 2. Nf3 {[%clk 0:02:59.2]}
2... Nc6 {[%clk 0:03:00]} 3. d4 {[%clk 0:02:59.7]} 3... cxd4 {[%clk 0:02:59.8]}
4. Nxd4 {[%clk 0:03:00.6]} 4... e6 {[%clk 0:02:59.7]} 5. Nc3 {[%clk 0:03:00.5]}
5... a6 {[%clk 0:02:59.8]} 6. Be2 {[%clk 0:02:56.8]} 6... Qc7 {[%clk 0:02:58.5]}
7. O-O {[%clk 0:02:56.9]} 7... Nf6 {[%clk 0:02:59.1]} 8. Be3 {[%clk 0:02:56.9]}
8... Be7 {[%clk 0:02:58.6]} 9. f4 {[%clk 0:02:57]} 9... d6 {[%clk 0:02:58]} 10.
Qe1 {[%clk 0:02:56.9]} 10... O-O {[%clk 0:02:57.4]} 11. Qg3 {[%clk 0:02:56.3]}
11... Nxd4 {[%clk 0:02:57.1]} 12. Bxd4 {[%clk 0:02:57.2]} 12... b5 {[%clk
0:02:57.7]} 13. a3 {[%clk 0:02:48.7]} 13... Bb7 {[%clk 0:02:57.7]} 14. Bd3
{[%clk 0:02:48.2]} 14... Rad8 {[%clk 0:02:56.8]} 15. Rae1 {[%clk 0:02:48]} 15...
Ne8 {[%clk 0:02:49.8]} 16. Kh1 {[%clk 0:02:42.3]} 16... Bf6 {[%clk 0:02:45.9]}
17. Bxf6 {[%clk 0:02:39.4]} 17... Nxf6 {[%clk 0:02:46.8]} 18. Qh4 {[%clk
0:02:33.7]} 18... Qc6 {[%clk 0:02:24]} 19. Re3 {[%clk 0:02:19.6]} 19... h6
{[%clk 0:01:47.1]} 20. Rg3 {[%clk 0:02:16.1]} 20... Kh8 {[%clk 0:01:43.5]} 21.
e5 {[%clk 0:02:04.9]} 21... Nh7 {[%clk 0:01:34.6]} 22. Ne4 {[%clk 0:01:52.1]}
22... dxe5 {[%clk 0:01:27.4]} 23. Qg4 {[%clk 0:00:58.6]} 23... g6 {[%clk
0:00:50.4]} 24. fxe5 {[%clk 0:00:54.6]} 24... Rd4 {[%clk 0:00:50.5]} 25. Re1
{[%clk 0:00:55]} 25... Ng5 {[%clk 0:00:43.6]} 26. Qh4 {[%clk 0:00:41.9]} 26...
Kg7 {[%clk 0:00:37.9]} 27. Rxg5 {[%clk 0:00:40.7]} 27... hxg5 {[%clk 0:00:36.7]}
28. Qxg5 {[%clk 0:00:41.6]} 28... Qc7 {[%clk 0:00:28.9]} 29. Qf6+ {[%clk
0:00:33.8]} 29... Kg8 {[%clk 0:00:28.7]} 30. Ng5 {[%clk 0:00:21.3]} 30... Rg4
{[%clk 0:00:18.7]} 31. Rg1 {[%clk 0:00:18.4]} 31... Qd8 {[%clk 0:00:16.5]} 32.
Qxd8 {[%clk 0:00:05.4]} 32... Rxd8 {[%clk 0:00:17.4]} 33. Nf3 {[%clk 0:00:05.2]}
33... Bxf3 {[%clk 0:00:14.2]} 34. gxf3 {[%clk 0:00:06.1]} 34... Rxg1+ {[%clk
0:00:14.7]} 35. Kxg1 {[%clk 0:00:07]} 35... Rd5 {[%clk 0:00:15.3]} 36. f4 {[%clk
0:00:07]} 36... Rd4 {[%clk 0:00:15.8]} 0-1

[Event "Late-Titled-Tuesday-Blitz-May-07-2024"]
[Site "Chess.com"]
[Date "2024.05.07"]
[Round "6"]
[White "WindWhistler11"]
[Black "maracayo"]
[Result "0-1"]
[WhiteElo "2524"]
[BlackElo "2382"]
[TimeControl "180+1"]
[EndTime "15:06:43 PDT"]
[Termination "maracayo won on time"]

1. Nf3 {[%clk 0:03:00.7]} 1... d6 {[%clk 0:02:59.8]} 2. g3 {[%clk 0:03:00.7]}
2... Nf6 {[%clk 0:02:59.3]} 3. Bg2 {[%clk 0:03:00.3]} 3... e5 {[%clk 0:02:59.2]}
4. d4 {[%clk 0:03:00.2]} 4... Nbd7 {[%clk 0:02:58.2]} 5. b3 {[%clk 0:02:58.7]}
5... Be7 {[%clk 0:02:57.7]} 6. dxe5 {[%clk 0:02:55.7]} 6... Nxe5 {[%clk
0:02:57]} 7. Bb2 {[%clk 0:02:56.2]} 7... Nxf3+ {[%clk 0:02:53.9]} 8. exf3 {[%clk
0:02:55.9]} 8... O-O {[%clk 0:02:53.8]} 9. O-O {[%clk 0:02:51.1]} 9... d5 {[%clk
0:02:53.4]} 10. f4 {[%clk 0:02:41.9]} 10... c6 {[%clk 0:02:52.9]} 11. Nd2 {[%clk
0:02:33.3]} 11... Bf5 {[%clk 0:02:42.8]} 12. h3 {[%clk 0:02:25.9]} 12... Bc5
{[%clk 0:02:10.8]} 13. g4 {[%clk 0:02:13.4]} 13... Bd7 {[%clk 0:02:09.7]} 14.
Nf3 {[%clk 0:02:06]} 14... Ne4 {[%clk 0:02:04.9]} 15. b4 {[%clk 0:01:56.8]}
15... Bb6 {[%clk 0:01:55.6]} 16. f5 {[%clk 0:01:42.6]} 16... f6 {[%clk
0:01:50.8]} 17. Qd3 {[%clk 0:01:35.4]} 17... Re8 {[%clk 0:01:40.5]} 18. Nd4
{[%clk 0:01:23.6]} 18... Nd6 {[%clk 0:01:22.3]} 19. Rae1 {[%clk 0:01:10.4]}
19... Nc4 {[%clk 0:01:21.8]} 20. Bc1 {[%clk 0:01:07.9]} 20... Qc7 {[%clk
0:01:08]} 21. h4 {[%clk 0:01:01.6]} 21... Ne5 {[%clk 0:01:02]} 22. Qd1 {[%clk
0:00:54.3]} 22... h5 {[%clk 0:00:19.4]} 23. gxh5 {[%clk 0:00:39.7]} 23... Bxd4
{[%clk 0:00:17.1]} 24. Qxd4 {[%clk 0:00:39.2]} 24... Bxf5 {[%clk 0:00:17.5]} 25.
h6 {[%clk 0:00:36.2]} 25... g6 {[%clk 0:00:15.6]} 26. Bf4 {[%clk 0:00:27.2]}
26... Qb6 {[%clk 0:00:13.2]} 27. Qc3 {[%clk 0:00:16.5]} 27... Kh7 {[%clk
0:00:09.2]} 28. Bxe5 {[%clk 0:00:10.9]} 28... fxe5 {[%clk 0:00:09]} 29. Rxe5
{[%clk 0:00:11.8]} 29... d4 {[%clk 0:00:08.9]} 30. Qg3 {[%clk 0:00:10.4]} 30...
Rxe5 {[%clk 0:00:07.7]} 31. Qxe5 {[%clk 0:00:11.3]} 31... Kxh6 {[%clk
0:00:07.8]} 32. h5 {[%clk 0:00:06.7]} 32... Rf8 {[%clk 0:00:04.5]} 33. Qf4+
{[%clk 0:00:05.1]} 33... Kg7 {[%clk 0:00:03.5]} 34. h6+ {[%clk 0:00:05.4]} 34...
Kh7 {[%clk 0:00:03.1]} 35. Re1 {[%clk 0:00:04.7]} 35... Qd8 {[%clk 0:00:02.7]}
36. Qe5 {[%clk 0:00:02.7]} 36... Rf7 {[%clk 0:00:02.7]} 0-1

[Event "Late-Titled-Tuesday-Blitz-May-07-2024"]
[Site "Chess.com"]
[Date "2024.05.07"]
[Round "6"]
[White "JaackCamel"]
[Black "Matalon"]
[Result "1-0"]
[WhiteElo "2220"]
[BlackElo "2380"]
[TimeControl "180+1"]
[EndTime "15:06:45 PDT"]
[Termination "JaackCamel won by checkmate"]

1. d4 {[%clk 0:03:00.9]} 1... Nf6 {[%clk 0:02:53]} 2. c4 {[%clk 0:03:00.2]} 2...
d6 {[%clk 0:02:52.7]} 3. Nf3 {[%clk 0:02:59.6]} 3... g6 {[%clk 0:02:52.4]} 4.
Nc3 {[%clk 0:02:59]} 4... Bg7 {[%clk 0:02:53]} 5. e4 {[%clk 0:02:58.8]} 5... O-O
{[%clk 0:02:53.6]} 6. Be2 {[%clk 0:02:58.7]} 6... Bg4 {[%clk 0:02:54.2]} 7. Be3
{[%clk 0:02:57.6]} 7... Nfd7 {[%clk 0:02:53.6]} 8. Nd2 {[%clk 0:02:55.4]} 8...
e5 {[%clk 0:02:52.7]} 9. d5 {[%clk 0:02:47.2]} 9... Bxe2 {[%clk 0:02:51.7]} 10.
Qxe2 {[%clk 0:02:43.3]} 10... f5 {[%clk 0:02:52.2]} 11. f3 {[%clk 0:02:42.6]}
11... Bh6 {[%clk 0:02:52]} 12. O-O-O {[%clk 0:02:30.3]} 12... Bxe3 {[%clk
0:02:49.3]} 13. Qxe3 {[%clk 0:02:30]} 13... c5 {[%clk 0:02:39.7]} 14. Rdf1
{[%clk 0:02:20.4]} 14... f4 {[%clk 0:02:32.7]} 15. Qe1 {[%clk 0:02:15.6]} 15...
Na6 {[%clk 0:02:33.3]} 16. a3 {[%clk 0:02:12.5]} 16... Nc7 {[%clk 0:02:31.5]}
17. h4 {[%clk 0:02:11.2]} 17... b5 {[%clk 0:02:29.3]} 18. h5 {[%clk 0:02:09.8]}
18... b4 {[%clk 0:02:28.1]} 19. Ncb1 {[%clk 0:02:04.5]} 19... g5 {[%clk
0:02:24.8]} 20. h6 {[%clk 0:02:02.9]} 20... Rb8 {[%clk 0:02:19.8]} 21. a4 {[%clk
0:01:59.7]} 21... b3 {[%clk 0:02:16.8]} 22. Nc3 {[%clk 0:01:54.7]} 22... Nb6
{[%clk 0:02:16.4]} 23. Nb5 {[%clk 0:01:40.5]} 23... Nxa4 {[%clk 0:02:14.1]} 24.
Nxa7 {[%clk 0:01:18.4]} 24... Rb6 {[%clk 0:01:33.7]} 25. Nc6 {[%clk 0:01:09.9]}
25... Qa8 {[%clk 0:01:30.8]} 26. Rh5 {[%clk 0:01:07]} 26... Nxb2 {[%clk
0:01:29.6]} 27. Rxg5+ {[%clk 0:01:03.1]} 27... Kh8 {[%clk 0:01:29.5]} 28. Qe2
{[%clk 0:00:32.5]} 28... Qa1+ {[%clk 0:01:05.3]} 29. Nb1 {[%clk 0:00:31.8]}
29... Na4 {[%clk 0:01:00.2]} 30. Kd2 {[%clk 0:00:18.5]} 30... Rxc6 {[%clk
0:00:49.5]} 31. dxc6 {[%clk 0:00:18]} 31... Ne6 {[%clk 0:00:50.1]} 32. Rg7
{[%clk 0:00:12.7]} 32... Nd4 {[%clk 0:00:49.7]} 33. Qd3 {[%clk 0:00:12.6]} 33...
Qb2+ {[%clk 0:00:45.6]} 34. Ke1 {[%clk 0:00:09.7]} 34... Qc2 {[%clk 0:00:42.9]}
35. Qd1 {[%clk 0:00:06.1]} 35... Qxg2 {[%clk 0:00:37.5]} 36. Rxg2 {[%clk
0:00:04.7]} 36... b2 {[%clk 0:00:36.8]} 37. Qxa4 {[%clk 0:00:03.3]} 37... Ne6
{[%clk 0:00:34.4]} 38. Rfg1 {[%clk 0:00:02.7]} 38... Rb8 {[%clk 0:00:31.5]} 39.
Qa7 {[%clk 0:00:01.9]} 39... Rc8 {[%clk 0:00:29.3]} 40. Qd7 {[%clk 0:00:01.7]}
40... Ng5 {[%clk 0:00:19.8]} 41. Qe7 {[%clk 0:00:00.7]} 41... Nxf3+ {[%clk
0:00:14]} 42. Kf2 {[%clk 0:00:01.6]} 42... Ng5 {[%clk 0:00:13.3]} 43. Rxg5
{[%clk 0:00:01.7]} 43... Rc7 {[%clk 0:00:12.3]} 44. Rg8# {[%clk 0:00:01.8]} 1-0

[Event "Late-Titled-Tuesday-Blitz-May-07-2024"]
[Site "Chess.com"]
[Date "2024.05.07"]
[Round "6"]
[White "MITerryble"]
[Black "Onischuk_V"]
[Result "1-0"]
[WhiteElo "3024"]
[BlackElo "2824"]
[TimeControl "180+1"]
[EndTime "15:06:47 PDT"]
[Termination "MITerryble won on time"]

1. d4 {[%clk 0:02:58.6]} 1... d6 {[%clk 0:03:00.4]} 2. Nf3 {[%clk 0:02:57.9]}
2... g6 {[%clk 0:03:00.4]} 3. Bg5 {[%clk 0:02:55.3]} 3... Bg7 {[%clk 0:03:00.5]}
4. c3 {[%clk 0:02:55.6]} 4... h6 {[%clk 0:02:57.1]} 5. Bh4 {[%clk 0:02:55.3]}
5... f5 {[%clk 0:02:57]} 6. e3 {[%clk 0:02:53]} 6... Nf6 {[%clk 0:02:57]} 7.
Nbd2 {[%clk 0:02:53]} 7... e6 {[%clk 0:02:51.4]} 8. Bd3 {[%clk 0:02:51.7]} 8...
O-O {[%clk 0:02:49.6]} 9. Qc2 {[%clk 0:02:45.2]} 9... Qe7 {[%clk 0:02:42.1]} 10.
h3 {[%clk 0:02:39.4]} 10... e5 {[%clk 0:02:39]} 11. dxe5 {[%clk 0:02:39]} 11...
dxe5 {[%clk 0:02:39.4]} 12. Bxf6 {[%clk 0:02:34.3]} 12... Bxf6 {[%clk
0:02:38.2]} 13. e4 {[%clk 0:02:35.2]} 13... f4 {[%clk 0:02:38.1]} 14. Rd1 {[%clk
0:02:21.9]} 14... Nd7 {[%clk 0:02:34.6]} 15. b4 {[%clk 0:02:21.2]} 15... a5
{[%clk 0:02:33.6]} 16. a3 {[%clk 0:02:21.4]} 16... axb4 {[%clk 0:02:32.9]} 17.
axb4 {[%clk 0:02:22.3]} 17... Kg7 {[%clk 0:02:27.8]} 18. Nc4 {[%clk 0:02:19.4]}
18... Rd8 {[%clk 0:02:26.7]} 19. O-O {[%clk 0:02:19]} 19... Nf8 {[%clk
0:02:25.7]} 20. Na5 {[%clk 0:02:17.7]} 20... g5 {[%clk 0:02:17]} 21. Nh2 {[%clk
0:02:14.3]} 21... c5 {[%clk 0:02:08.9]} 22. Nc4 {[%clk 0:01:43.7]} 22... Be6
{[%clk 0:01:52]} 23. b5 {[%clk 0:01:31.8]} 23... Ng6 {[%clk 0:01:39]} 24. Nb6
{[%clk 0:01:26.6]} 24... Ra2 {[%clk 0:01:38.4]} 25. Qb1 {[%clk 0:01:26.9]} 25...
Ra3 {[%clk 0:01:25.3]} 26. Qb2 {[%clk 0:01:22.2]} 26... Ra2 {[%clk 0:01:19.4]}
27. Qb1 {[%clk 0:01:22.5]} 27... Ra3 {[%clk 0:01:19.2]} 28. Nd5 {[%clk
0:01:15.3]} 28... Bxd5 {[%clk 0:01:03]} 29. exd5 {[%clk 0:01:16.2]} 29... Nh4
{[%clk 0:00:58.8]} 30. c4 {[%clk 0:01:12.8]} 30... e4 {[%clk 0:00:51.9]} 31.
Bxe4 {[%clk 0:01:08.8]} 31... Bd4 {[%clk 0:00:51.9]} 32. Kh1 {[%clk 0:01:00.9]}
32... Re8 {[%clk 0:00:49.8]} 33. Bd3 {[%clk 0:00:48.6]} 33... Qd6 {[%clk
0:00:26.6]} 34. Qc2 {[%clk 0:00:45.4]} 34... Rc3 {[%clk 0:00:20.2]} 35. Qd2
{[%clk 0:00:45.7]} 35... Rb3 {[%clk 0:00:20.5]} 36. Rde1 {[%clk 0:00:43.3]}
36... Rb2 {[%clk 0:00:18.5]} 37. Bc2 {[%clk 0:00:39.5]} 37... Rxe1 {[%clk
0:00:17.3]} 38. Rxe1 {[%clk 0:00:40.4]} 38... Ng6 {[%clk 0:00:17.2]} 39. Qd3
{[%clk 0:00:38.3]} 39... Nf8 {[%clk 0:00:07]} 40. Nf3 {[%clk 0:00:33.6]} 40...
Bf6 {[%clk 0:00:06.3]} 41. Nd2 {[%clk 0:00:28.2]} 41... Qd7 {[%clk 0:00:05.2]}
42. Ne4 {[%clk 0:00:27.3]} 42... Qf7 {[%clk 0:00:03.8]} 43. Nxc5 {[%clk
0:00:26.8]} 43... g4 {[%clk 0:00:03.6]} 44. Ne6+ {[%clk 0:00:22.3]} 44... Nxe6
{[%clk 0:00:03.2]} 45. dxe6 {[%clk 0:00:23.2]} 1-0